fUSD/lending_fUSD_20240114
["ID","MTS","AMOUNT","RATE_DAILY","PERIOD"]
[311529461,1705190431587,3175.97672478,0.00022012,3]
[311529462,1705190442296,170.48,0.00021977,2]
[311529463,1705190442629,170.48,0.00022038,2]
[311529464,1705190442705,170.48,0.00022098,2]
[311529465,1705190443014,1000.0,0.00022012,3]
[311529466,1705190449151,1000.0,0.00022012,3]
[311529468,1705190463968,205.0,0.00021745,2]
[311529469,1705190492521,156.31473598,0.00022014,2]
[311529470,1705190504561,176.13,0.00022,2]
[311529472,1705190515457,337.53,0.00019771,2]
[311529473,1705190515666,337.53,0.00022035,2]
[311529474,1705190519205,189258.29506395,0.00021438,2]
[311529475,1705190521561,493.5836093,0.00022012,3]
[311529480,1705190556794,1000.0,0.00022012,3]
[311529481,1705190558088,169.65,0.00021911,2]
[311529483,1705190581575,158.72,0.00021699,2]
[311529484,1705190581730,1773.5236549,0.00022012,3]
[311529485,1705190581857,158.72,0.00021854,2]
[311529486,1705190582081,158.72,0.00022009,2]
[311529489,1705190616662,345.77,0.00021639,2]
[311529490,1705190622843,1000.0,0.00022012,3]
[311529492,1705190671433,4263.75313428,0.00022012,3]
[311529494,1705190737452,1250.0,0.00022,3]
[311529496,1705190796762,1000.0,0.00022012,3]
[311529497,1705190821393,2863.95690367,0.00022012,3]
[311529498,1705190838387,682.62,0.00021634,2]
[311529499,1705190881788,2515.01180162,0.00022012,3]
[311529500,1705190887661,152.53,0.00021859,2]
[311529501,1705190887855,152.53,0.00021922,2]
[311529502,1705190888092,152.53,0.00021985,2]
[311529503,1705190888306,152.53,0.00022049,2]
[311529508,1705190971545,1516.76979345,0.00022012,3]
[311529509,1705191011367,303.77,0.00019714,2]
[311529510,1705191011874,303.77,0.00021978,2]
[311529511,1705191029788,155.56,0.00021648,2]
[311529512,1705191030012,155.56,0.00022081,2]
[311529513,1705191031613,5042.38592719,0.00022012,3]
[311529521,1705191032016,-152.53,0.00022112,2]
[311529522,1705191032026,-300.0,0.00022113,2]
[311529523,1705191032036,-486.49969699,0.00022113,2]
[311529526,1705191032050,-565.73454976,0.00022113,2]
[311529527,1705191032063,-4386.12601107,0.00022113,2]
[311529528,1705191032072,-803.82304451,0.00022114,2]
[311529529,1705191032084,-7722.83906939,0.00022114,2]
[311529530,1705191032096,-2973.66988191,0.00022114,2]
[311529531,1705191032108,-785.87278684,0.00022114,2]
[311529532,1705191032118,-272.14626247,0.00022115,2]
[311529533,1705191032134,-316.39842106,0.00022115,2]
[311529534,1705191032146,-689.90531647,0.00022115,2]
[311529535,1705191032156,-1000.0,0.00022115,2]
[311529536,1705191032166,-1000.0,0.00022115,2]
[311529537,1705191032176,-122561.92729788,0.00022116,2]
[311529538,1705191032185,-156.9,0.00022117,2]
[311529539,1705191032194,-152.3,0.0002215,2]
[311529540,1705191032204,-158.72,0.00022164,2]
[311529541,1705191032213,-1154.62,0.00022164,2]
[311529542,1705191032225,-499.99,0.00022164,2]
[311529543,1705191032235,-152.53,0.00022175,2]
[311529544,1705191032244,-202.33,0.00022219,2]
[311529545,1705191032254,-152.53,0.00022239,2]
[311529546,1705191032263,-1000.0,0.00022266,2]
[311529547,1705191032273,-1866.3407,0.00022266,2]
[311529548,1705191032283,-500.0,0.00022266,2]
[311529549,1705191032292,-152.53,0.00022302,2]
[311529550,1705191032301,-2487.72504954,0.00022305,2]
[311529551,1705191032311,-685.49,0.00022314,2]
[311529552,1705191032321,-150.99,0.00022314,2]
[311529553,1705191032330,-158.72,0.00022319,2]
[311529554,1705191032339,-152.53,0.00022365,2]
[311529555,1705191032349,-4926.24,0.000224,2]
[311529556,1705191032358,-152.3,0.00022423,2]
[311529557,1705191032368,-152.53,0.00022428,2]
[311529558,1705191032377,-158.72,0.00022474,2]
[311529559,1705191032387,-152.53,0.00022492,2]
[311529561,1705191032396,-155.56,0.00022514,2]
[311529563,1705191032405,-352.02,0.00022548,2]
[311529565,1705191032415,-152.53,0.00022555,2]
[311529567,1705191032425,-730.59,0.00022596,2]
[311529569,1705191032434,-345.77,0.00022618,2]
[311529571,1705191032444,-152.53,0.00022618,2]
[311529573,1705191032453,-158.72,0.00022629,2]
[311529576,1705191032463,-152.53,0.00022682,2]
[311529579,1705191032473,-152.3,0.00022697,2]
[311529582,1705191032482,-150.0,0.00022722,2]
[311529585,1705191032491,-940.21,0.00022726,2]
[311529588,1705191032500,-401.27,0.00022726,2]
[311529591,1705191032510,-1463.81602884,0.00022726,3]
[311529594,1705191032519,-152.53,0.00022745,2]
[311529597,1705191032528,-658.66970858,0.00022775,2]
[311529600,1705191032538,-158.72,0.00022784,2]
[311529603,1705191032547,-153.0,0.00022793,2]
[311529605,1705191032557,-826.73089501,0.00022798,2]
[311529607,1705191032566,-1145.8398457,0.000228,2]
[311529609,1705191032578,-58816.5970543,0.000228,2]
[311529611,1705191032588,-199.9693645,0.000228,2]
[311529612,1705191032598,-165.97418147,0.000228,2]
[311529613,1705191032609,-152.53,0.00022808,2]
[311529614,1705191032619,-826.73089494,0.00022813,2]
[311529615,1705191032628,-800.0,0.0002282,2]
[311529617,1705191032638,-826.73089494,0.00022827,2]
[311529619,1705191032648,-199.9693645,0.0002285,2]
[311529620,1705191032658,-152.53,0.00022871,2]
[311529621,1705191032668,-185.09475926,0.0002289,2]
[311529622,1705191032678,-12548.05699952,0.00022896,2]
[311529623,1705191032691,-1710.90711718,0.00022896,2]
[311529624,1705191032701,-487.50088857,0.00022896,2]
[311529625,1705191032710,-12548.05699945,0.00022896,2]
[311529626,1705191032721,-12548.05699945,0.00022897,2]
[311529627,1705191032731,-12548.05699945,0.00022897,2]
[311529628,1705191032741,-12548.05699945,0.00022897,2]
[311529629,1705191032752,-12548.05699945,0.00022898,2]
[311529630,1705191032761,-370.24825006,0.00022898,2]
[311529631,1705191032771,-1710.90711716,0.00022898,2]
[311529632,1705191032780,-487.50088855,0.00022898,2]
[311529633,1705191032791,-12548.05699945,0.00022898,2]
[311529634,1705191032800,-12548.05699945,0.00022899,2]
[311529635,1705191032810,-12548.05699945,0.00022899,2]
[311529636,1705191032820,-370.24825005,0.00022899,2]
[311529637,1705191032829,-12548.05699945,0.00022899,2]
[311529638,1705191032838,-12548.05699945,0.000229,2]
[311529639,1705191032848,-1000.0,0.000229,2]
[311529640,1705191032858,-20843.2182,0.000229,2]
[311529641,1705191032867,-51358.52456897,0.000229,2]
[311529642,1705191032887,-875.19314244,0.000229,2]
[311529643,1705191032899,-51015.49502737,0.000229,2]
[311529644,1705191032922,-255.8730365,0.000229,2]
[311529645,1705191032933,-250.0,0.000229,2]
[311529646,1705191032956,-427.31629619,0.000229,2]
[311529647,1705191032968,-783.78704333,0.000229,2]
[311529650,1705191038073,-826.73089494,0.00022842,2]
[311529651,1705191038083,-145.20210506,0.000229,2]
[311529652,1705191038094,-5140.75444911,0.000229,2]
[311529653,1705191038133,-37723.18462071,0.000229,2]
[311529654,1705191038145,-27012.12405636,0.000229,2]
[311529655,1705191038159,-22957.40255396,0.000229,2]
[311529656,1705191038169,-38877.81007463,0.000229,2]
[311529657,1705191038248,-12984.84205796,0.000229,2]
[311529658,1705191038276,-45142.17519004,0.000229,2]
[311529659,1705191038287,-951.26132272,0.000229,2]
[311529660,1705191038300,-455.23866117,0.000229,2]
[311529661,1705191038313,-343.81017987,0.000229,2]
[311529662,1705191038334,-21733.5547,0.000229,2]
[311529663,1705191038345,-3214.83270744,0.000229,2]
[311529664,1705191038356,-556.75400008,0.000229,2]
[311529665,1705191038371,-903.352006,0.000229,2]
[311529666,1705191038430,-512890.69909805,0.000229,2]
[311529667,1705191038439,-11646.7938,0.000229,2]
[311529668,1705191038448,-5000.0,0.000229,2]
[311529669,1705191038457,-159.18881728,0.000229,2]
[311529670,1705191038467,-505167.17128526,0.000229,2]
[311529671,1705191038478,-6381.0696,0.000229,2]
[311529672,1705191038487,-250.0,0.000229,2]
[311529674,1705191038496,-199.9693645,0.000229,2]
[311529676,1705191038506,-370.24825005,0.000229,2]
[311529678,1705191038515,-1560.0,0.000229,2]
[311529680,1705191038524,-12548.05699945,0.000229,2]
[311529682,1705191038533,-1710.90711716,0.000229,2]
[311529684,1705191038542,-487.50088855,0.000229,2]
[311529686,1705191038552,-152.53,0.00022935,2]
[311529688,1705191038560,-158.72,0.00022939,2]
[311529690,1705191038569,-155.56,0.00022947,2]
[311529692,1705191038578,-152.3,0.0002297,2]
[311529694,1705191038588,-385.2659982,0.00022995,2]
[311529696,1705191038598,-195.25101501,0.00022995,2]
[311529698,1705191038609,-313.2504707,0.00022995,2]
[311529700,1705191038618,-8759.56607689,0.00022996,2]
[311529702,1705191038628,-23599.89114471,0.00022996,2]
[311529704,1705191038638,-428.28245121,0.00022997,2]
[311529706,1705191038647,-73977.54352647,0.00022997,2]
[311529708,1705191038656,-530.31943851,0.00022998,2]
[311529710,1705191038666,-2625.89787418,0.00022998,2]
[311529712,1705191038675,-152.53,0.00022998,2]
[311529714,1705191038687,-715.63,0.00022998,2]
[311529716,1705191038696,-200.0,0.00022999,2]
[311529718,1705191038705,-177.0,0.00022999,2]
[311529720,1705191038714,-595.47775828,0.00022999,2]
[311529722,1705191038723,-155.0,0.00022999,2]
[311529724,1705191038734,-1852.8340926,0.00022999,2]
[311529726,1705191038744,-150.0,0.00022999,2]
[311529728,1705191038753,-150.0,0.00022999,2]
[311529730,1705191038762,-150.0,0.00022999,2]
[311529732,1705191038771,-150.0,0.00022999,2]
[311529734,1705191038780,-150.0,0.00022999,2]
[311529736,1705191038789,-150.0,0.00022999,2]
[311529738,1705191038798,-150.0,0.00022999,2]
[311529740,1705191038807,-150.0,0.00022999,2]
[311529742,1705191038816,-150.0,0.00022999,2]
[311529744,1705191038825,-150.0,0.00022999,2]
[311529746,1705191038834,-150.0,0.00022999,2]
[311529748,1705191038843,-150.0,0.00022999,2]
[311529750,1705191038852,-150.0,0.00022999,2]
[311529752,1705191038861,-150.0,0.00022999,2]
[311529754,1705191038871,-150.0,0.00022999,2]
[311529756,1705191038879,-150.0,0.00022999,2]
[311529758,1705191038890,-844.0,0.00022999,2]
[311529760,1705191038899,-5672512.51806136,0.00023,2]
[311529927,1705191040605,-701.66503495,0.00022856,2]
[311529929,1705191040620,-125.06585999,0.00022856,2]
[311529931,1705191040630,-124.93414001,0.00023,2]
[311529936,1705191040665,-6008.3088234,0.00023,2]
[311529938,1705191040676,-374.57405008,0.00023,2]
[311529951,1705191040783,-6816.90324979,0.00023,2]
[311529953,1705191040795,-700.43927189,0.00023,2]
[311530189,1705191043011,-153.0,0.000229,2]
[311530191,1705191043021,-153.0,0.000229,2]
[311530193,1705191043031,-153.0,0.000229,2]
[311530195,1705191043039,-153.0,0.00022997,2]
[311530197,1705191043049,-9845.88166454,0.00023,2]
[311530199,1705191043060,-3450.39316827,0.00023,2]
[311530213,1705191043182,-500.91146975,0.00023,2]
[311530226,1705191043297,-146427.03378207,0.00023,2]
[311530362,1705191046160,-591.61324659,0.00022871,2]
[311530363,1705191046173,-235.11764835,0.00022871,2]
[311530364,1705191046182,-84.79120277,0.00022999,2]
[311530365,1705191046194,-593.01027,0.00022999,2]
[311530366,1705191046205,-385.2659982,0.00022999,2]
[311530367,1705191046217,-4375.29278685,0.00022999,2]
[311530368,1705191046226,-765.0,0.00023,2]
[311530369,1705191046236,-4231.22737548,0.00023,2]
[311530370,1705191046247,-26386.00055246,0.00023,2]
[311530371,1705191046376,-0.60024955,0.00023,2]
[311530372,1705191046403,-2824.50000151,0.00023,2]
[311530406,1705191054091,419.33476208,0.00022078,2]
[311530407,1705191060849,155.41046091,0.00021968,2]
[311530414,1705191072544,1000.0,0.00022012,3]
[311530418,1705191105276,155.0,0.00021968,2]
[311530419,1705191110885,872.38350099,0.00022078,3]
[311530420,1705191121936,370.35014866,0.00022012,3]
[311530421,1705191132928,352.1,0.00022,2]
[311530422,1705191186630,1000.0,0.00022012,3]
[311530423,1705191211407,1183.1364475,0.00022012,3]
[311530424,1705191274994,453.9,0.00021943,2]
[311530425,1705191369707,1852.8340926,0.00021943,2]
[311530426,1705191376453,155.0,0.00021943,2]
[311530427,1705191385743,595.47775828,0.00021943,2]
[311530428,1705191391452,4477.20501895,0.00022012,3]
[311530429,1705191397057,163.19478923,0.00021,2]
[311530430,1705191435789,273.39,0.00019993,2]
[311530431,1705191481637,6861.27391613,0.00022012,3]
[311530432,1705191492455,1000.0,0.00022012,3]
[311530433,1705191541163,299.66,0.00021869,2]
[311530434,1705191569298,151.0,0.00030742,120]
[311530435,1705191571432,7023.28448283,0.00022012,3]
[311530436,1705191593106,428.28245121,0.00021847,2]
[311530437,1705191602218,150.0,0.00021869,2]
[311530438,1705191602407,150.0,0.00021869,2]
[311530439,1705191602769,150.0,0.00021869,2]
[311530440,1705191602958,150.0,0.00021869,2]
[311530441,1705191603147,150.0,0.00021869,2]
[311530442,1705191603347,150.0,0.00021869,2]
[311530443,1705191603563,150.0,0.00021869,2]
[311530444,1705191603779,150.0,0.00021869,2]
[311530445,1705191603981,150.0,0.00021869,2]
[311530446,1705191604177,150.0,0.00021869,2]
[311530447,1705191604350,261.11940098,0.00021869,2]
[311530448,1705191646282,164.41,0.00021849,2]
[311530449,1705191661572,3963.13733394,0.00022012,3]
[311530450,1705191686976,1472.20061739,0.00021847,7]
[311530451,1705191687004,679.70803117,0.00021847,7]
[311530452,1705191721533,329.9046494,0.00022012,3]
[311530453,1705191801759,636.88,0.00021768,2]
[311530454,1705191811975,269.33469872,0.00022012,3]
[311530455,1705191828380,196.26,0.00021766,2]
[311530456,1705191870676,259.72,0.00019877,2]
[311530457,1705191871827,2635.06483954,0.00022012,3]
[311530458,1705191873746,205.0,0.00021571,2]
[311530459,1705191909774,156.9,0.00022012,2]
[311530460,1705191967695,155.54,0.00021778,2]
[311530461,1705191980963,152.65,0.0002192,2]
[311530462,1705191984504,203.08140272,0.000221,2]
[311530463,1705191996789,1000.0,0.00022012,3]
[311530464,1705191998226,159.63220399,0.000221,2]
[311530465,1705192002513,1000.0,0.00022012,3]
[311530466,1705192009345,151.0,0.00030884,120]
[311530467,1705192027208,1060.91,0.0002181,2]
[311530468,1705192049917,279.68,0.00021795,2]
[311530469,1705192057008,1000.0,0.00022012,3]
[311530470,1705192117791,1000.0,0.00022012,3]
[311530471,1705192177558,1000.0,0.00022012,3]
[311530472,1705192183244,1000.0,0.00022012,3]
[311530473,1705192201481,4018.60721622,0.00022012,3]
[311530485,1705192232278,-484.10191491,0.00022101,2]
[311530486,1705192232292,-10.04169442,0.00022101,2]
[311530487,1705192232302,-159.0,0.00022112,2]
[311530488,1705192232312,-259.72,0.00022141,2]
[311530489,1705192232321,-728.14,0.00022275,2]
[311530490,1705192232330,-29.78841975,0.00022281,2]
[311530491,1705192232342,-120.21158025,0.00022281,2]
[311530492,1705192232351,-149.21573368,0.00022282,2]
[311530493,1705192232363,-4777.00888869,0.00022282,2]
[311530494,1705192232399,-907.0,0.00022282,2]
[311530495,1705192232448,-27893.23630587,0.00022282,2]
[311530496,1705192232458,-28801.67166992,0.00022283,2]
[311530497,1705192232468,-7100.94338141,0.00022284,2]
[311530498,1705192232478,-726.32,0.00022285,2]
[311530499,1705192232487,-729.44,0.00022288,2]
[311530500,1705192232497,-733.68,0.00022341,2]
[311530501,1705192232507,-713.55,0.00022419,2]
[311530502,1705192232517,-150.0,0.00022486,2]
[311530503,1705192232526,-725.54,0.00022527,2]
[311530504,1705192232536,-734.18,0.00022678,2]
[311530505,1705192232546,-7308.0096,0.000227,2]
[311530506,1705192232556,-5036.37,0.000227,2]
[311530507,1705192232565,-401.3579,0.000227,2]
[311530508,1705192232575,-401.03,0.000227,2]
[311530509,1705192232584,-939.95,0.000227,2]
[311530510,1705192232594,-227.11389426,0.00022715,2]
[311530511,1705192232603,-487.18115102,0.0002276,3]
[311530512,1705192232613,-940.21,0.00022761,2]
[311530513,1705192232622,-940.21,0.00022761,2]
[311530514,1705192232632,-940.21,0.00022761,2]
[311530515,1705192232641,-940.21,0.00022762,2]
[311530517,1705192232651,-393.68225135,0.00022768,2]
[311530519,1705192232660,-279.68,0.00022774,2]
[311530521,1705192232670,-5000.0,0.000228,2]
[311530523,1705192232679,-227.11389423,0.00022807,2]
[311530525,1705192232688,-957.07,0.00022815,2]
[311530527,1705192232698,-800.0,0.0002282,2]
[311530528,1705192232709,-728.69,0.00022842,2]
[311530529,1705192232719,-155.54,0.00022867,2]
[311530530,1705192232732,-424.6498,0.00022897,2]
[311530531,1705192232742,-227.11389423,0.00022898,2]
[311530532,1705192232752,-290.92176099,0.00022898,2]
[311530533,1705192232761,-1000.0,0.00022899,2]
[311530534,1705192232771,-199.9693645,0.00022899,2]
[311530535,1705192232781,-503.34316106,0.00022899,2]
[311530536,1705192232791,-250.0,0.000229,2]
[311530537,1705192232801,-205.21073047,0.000229,2]
[311530538,1705192232810,-1522.28,0.000229,2]
[311530539,1705192232820,-412.72696257,0.000229,6]
[311530540,1705192232829,-1154.04564286,0.00022995,3]
[311530541,1705192232839,-336.63955215,0.00022995,2]
[311530542,1705192232849,-247.93533167,0.00022995,2]
[311530543,1705192232859,-155.2723803,0.00022995,2]
[311530544,1705192232869,-2959.85465249,0.00022995,2]
[311530545,1705192232879,-4624.2344339,0.00022995,2]
[311530546,1705192232888,-3349.73337623,0.00022995,2]
[311530547,1705192232898,-188.38711058,0.00022995,2]
[311530548,1705192232908,-489.11941966,0.00022995,2]
[311530549,1705192232919,-303.52996515,0.00022995,2]
[311530550,1705192232929,-192.19730932,0.00022995,2]
[311530551,1705192232939,-2010.47171939,0.00022996,2]
[311530552,1705192232949,-12286.20478265,0.00022997,2]
[311530553,1705192232964,-155.0,0.00022997,7]
[311530554,1705192232976,-2625.89787418,0.00022997,2]
[311530555,1705192232987,-530.31943851,0.00022997,2]
[311530556,1705192232996,-19117.31456255,0.00022997,2]
[311530557,1705192233006,-488.47608906,0.00022997,2]
[311530558,1705192233017,-195.25101501,0.00022997,2]
[311530559,1705192233028,-385.2659982,0.00022997,2]
[311530560,1705192233037,-8759.56607689,0.00022997,2]
[311530561,1705192233047,-313.2504707,0.00022997,2]
[311530562,1705192233056,-397258.3596713,0.00022997,2]
[311530563,1705192233066,-6429.59170343,0.00022998,2]
[311530564,1705192233076,-542.45490772,0.00022998,2]
[311530565,1705192233086,-158.44274332,0.00022998,2]
[311530566,1705192233095,-3784.84273705,0.00022998,2]
[311530567,1705192233106,-279.95435992,0.00022999,2]
[311530568,1705192233117,-2616.61714692,0.00022999,2]
[311530569,1705192233127,-3618.63889774,0.00022999,2]
[311530570,1705192233137,-5469.5421162,0.00022999,2]
[311530571,1705192233146,-3726.3855138,0.00022999,2]
[311530572,1705192233459,-161680.96164942,0.00022999,2]
[311530573,1705192233473,-24236.57730222,0.00022999,2]
[311530574,1705192233485,-7924.14223101,0.00022999,2]
[311530575,1705192233520,-115691.90498708,0.00022999,2]
[311530576,1705192233533,-4110.72251634,0.00022999,2]
[311530577,1705192233650,-1129.24535294,0.00022999,2]
[311530578,1705192233662,-4290.71353685,0.00022999,2]
[311530579,1705192233674,-164783.28817718,0.00022999,2]
[311530580,1705192236678,1000.0,0.00022012,3]
[311530581,1705192238296,-153.0,0.00022793,2]
[311530582,1705192238306,-977.88909021,0.000229,2]
[311530583,1705192238319,-473.3383626,0.000229,2]
[311530584,1705192238330,-4929.84214719,0.000229,2]
[311530585,1705192238339,-153.0,0.00022997,2]
[311530586,1705192238348,-34002.75775778,0.00022999,2]
[311530587,1705192238361,-4723.37346589,0.00022999,2]
[311530588,1705192238386,-2970.40230116,0.00022999,2]
[311530589,1705192238433,-30633.7747481,0.00022999,2]
[311530590,1705192238700,-406210.43922554,0.00022999,2]
[311530591,1705192238714,-153.0,0.00022999,2]
[311530593,1705192238723,-17593.23001842,0.00022999,2]
[311530595,1705192238733,-150.0,0.00022999,2]
[311530596,1705192238742,-150.0,0.00022999,2]
[311530597,1705192238751,-150.0,0.00022999,2]
[311530598,1705192238760,-150.0,0.00022999,2]
[311530599,1705192238769,-823.0,0.00022999,2]
[311530600,1705192238779,-200.0,0.00023,2]
[311530602,1705192238788,-177.0,0.00023,2]
[311530604,1705192238798,-632637.40145015,0.00023,2]
[311530606,1705192238807,-4756153.04943372,0.00023,2]
[311530608,1705192238819,-260.35526367,0.00023,2]
[311530809,1705192240833,-457.45809944,0.00022996,3]
[311530811,1705192240843,-495.08133997,0.00022997,3]
[311530813,1705192240853,-75279.54715711,0.00023,2]
[311530815,1705192240862,-2000.0,0.00023,2]
[311530817,1705192240871,-2000.0,0.00023,2]
[311530819,1705192240882,-200.0,0.00023,2]
[311530821,1705192240891,-151.0,0.00023,7]
[311530823,1705192240901,-151.0,0.00023,7]
[311530825,1705192240911,-151.0,0.00023,2]
[311530827,1705192240920,-151.0,0.00023,2]
[311530829,1705192240930,-151.0,0.00023,7]
[311530831,1705192240939,-110.1134033,0.00023,2]
[311530885,1705192241444,-137.2165967,0.00023,2]
[311530887,1705192241453,-153.0,0.00023,2]
[311530890,1705192241465,-153.0,0.00023,2]
[311530892,1705192241475,-153.0,0.00023,2]
[311530894,1705192241484,-153.0,0.00023,2]
[311530896,1705192241494,-153.0,0.00023,2]
[311530898,1705192241504,-153.0,0.00023,2]
[311530900,1705192241513,-103.5880503,0.00023,2]
[311530913,1705192241625,-49.4119497,0.00023,2]
[311530915,1705192241634,-153.0,0.00023,2]
[311530917,1705192241644,-153.0,0.00023,2]
[311530919,1705192241653,-153.0,0.00023,2]
[311530921,1705192241662,-21.79555057,0.00023001,2]
[311531091,1705192243308,-7722.10182853,0.00023001,2]
[311531093,1705192243318,-155.0,0.00023005,2]
[311531095,1705192243327,-2514.85657493,0.00023006,2]
[311531097,1705192243337,-106.84319662,0.00023006,2]
[311531100,1705192243348,-3186.20057315,0.00023006,2]
[311531102,1705192243358,-61.18606708,0.00023009,2]
[311531109,1705192243414,-3257.81158632,0.00023009,2]
[311531111,1705192243424,-2729.13201363,0.00023009,2]
[311531170,1705192243942,-96822.05686967,0.00023009,2]
[311531172,1705192243952,-152.65,0.00023062,2]
[311531174,1705192243962,-170.83,0.00023064,2]
[311531176,1705192243972,-1176.03657584,0.00023085,2]
[311531178,1705192243981,-158.72,0.00023094,2]
[311531179,1705192243990,-1560.0,0.000231,2]
[311531181,1705192243999,-11748.34634841,0.0002313,2]
[311531183,1705192244009,-200000.0,0.00023149,2]
[311531185,1705192244018,-153.0,0.00023149,2]
[311531188,1705192244028,-170.83,0.0002318,2]
[311531190,1705192244037,-2000.0,0.0002323,2]
[311531192,1705192244047,-200.0,0.0002323,2]
[311531194,1705192244056,-152.3,0.00023244,2]
[311531196,1705192244066,-158.72,0.00023249,2]
[311531198,1705192244075,-93501.44302992,0.00023264,2]
[311531200,1705192244084,-151.0,0.00023264,7]
[311531202,1705192244093,-151.0,0.00023264,7]
[311531204,1705192244103,-151.0,0.00023264,2]
[311531206,1705192244112,-245.942834,0.00023264,2]
[311531208,1705192244121,-169.65,0.00023285,2]
[311531210,1705192244131,-929.19563176,0.00023286,3]
[311531212,1705192244140,-170.83,0.00023296,2]
[311531214,1705192244149,-155.56,0.0002338,2]
[311531216,1705192244158,-156.9,0.00023392,2]
[311531218,1705192244167,-158.72,0.00023404,2]
[311531220,1705192244176,-170.83,0.00023412,2]
[311531222,1705192244186,-2000.0,0.00023462,2]
[311531224,1705192244196,-159.0,0.00023498,2]
[311531226,1705192244205,-152.3,0.00023517,2]
[311531228,1705192244215,-170.83,0.00023528,2]
[311531230,1705192244226,-158.72,0.00023559,2]
[311531232,1705192244235,-170.83,0.00023644,2]
[311531234,1705192244245,-150.0,0.00023654,2]
[311531236,1705192244255,-150.0,0.00023654,2]
[311531238,1705192244264,-995.0,0.00023655,2]
[311531240,1705192244274,-468.46,0.00023655,2]
[311531242,1705192244285,-1931.0,0.00023655,2]
[311531244,1705192244295,-593.0,0.00023655,2]
[311531246,1705192244306,-507.0,0.00023655,2]
[311531248,1705192244320,-435.561,0.00023655,2]
[311531250,1705192244330,-235.0,0.00023655,2]
[311531252,1705192244340,-879.0,0.00023655,2]
[311531254,1705192244351,-19683.0,0.00023655,2]
[311531256,1705192244362,-22315.699,0.00023655,2]
[311531258,1705192244375,-7343.0,0.00023655,2]
[311531260,1705192244386,-2414.0,0.00023655,2]
[311531262,1705192244397,-2271.0,0.00023655,2]
[311531264,1705192244408,-2906.777,0.00023655,2]
[311531266,1705192244418,-5571.0,0.00023655,2]
[311531268,1705192244429,-451.892,0.00023655,2]
[311531270,1705192244439,-8086.0,0.00023655,2]
[311531272,1705192244449,-1355.0,0.00023655,2]
[311531274,1705192244459,-4169.0,0.00023655,2]
[311531276,1705192244477,-3036.0,0.00023655,2]
[311531278,1705192244486,-835.0,0.00023655,2]
[311531280,1705192244495,-1852.0,0.00023655,2]
[311531282,1705192244505,-150.0,0.00023655,2]
[311531284,1705192244514,-945.0,0.00023655,2]
[311531287,1705192244524,-1028.0,0.00023655,2]
[311531289,1705192244533,-150.0,0.0002369,2]
[311531291,1705192244544,-150.0,0.0002369,2]
[311531293,1705192244554,-158.72,0.00023714,2]
[311531295,1705192244564,-279.68,0.00023752,2]
[311531297,1705192244575,-170.83,0.0002376,2]
[311531299,1705192244585,-152.3,0.00023791,2]
[311531300,1705192244594,-155.56,0.00023813,2]
[311531301,1705192244604,-290.92176094,0.00023867,2]
[311531302,1705192244613,-158.72,0.00023869,2]
[311531303,1705192244622,-170.83,0.00023876,2]
[311531304,1705192244631,-155.54,0.00023956,2]
[311531305,1705192244640,-170.83,0.00023992,2]
[311531306,1705192244650,-200.94414737,0.00024,2]
[311531307,1705192244659,-431.11450683,0.00024,2]
[311531309,1705192244668,-155.0,0.00024,2]